[Event "RUS-chT Blitz Men 2018"]
[Site "Sochi"]
[Date "2018.10.10"]
[Round "2"]
[White "Tekeyev, Zaur"]
[Black "Belyakov, Bogdan"]
[Result "0-1"]
[ECO "C50"]
[WhiteElo "2392"]
[BlackElo "2458"]
[Annotator "RC"]
[PlyCount "98"]
[EventDate "2018.10.10"]
[EventType "swiss"]
[EventCountry "RUS"]
[SourceTitle "playchess.com"]
[Source "ChessBase"]
[SourceQuality "1"]
[TimeControl "180+2"]

1. e4 {[%emt 0:00:00]} e5 {[%emt 0:00:00]} 2. Nf3 {[%emt 0:00:00]} Nc6 {[%emt 0:00:00]} 3. Bc4 {[%emt 0:00:01]} Nf6 {[%emt 0:00:02]} 4. d3 {[%emt 0:00:01]} Bc5 {[%emt 0:00:02]} 5. O-O {[%emt 0:00:02]} O-O {[%emt 0:00:02]} 6. Bg5 {[%emt 0:00:02]} h6 {[%emt 0:00:02]} 7. Bh4 {[%emt 0:00:01]} Be7 {[%emt 0:00:02]} 8. Bg3 {[%emt 0:00:02]} d6 {[%emt 0:00:03]} 9. a4 {[%emt 0:00:01]} Nh5 {[%emt 0:00:18]} 10. Nxe5 {[%emt 0:00:09]} Nxg3 {[%emt 0:00:26]} 11. Nxc6 {[%emt 0:00:09]} bxc6 {[%emt 0:00:02]} 12. hxg3 {[%emt 0:00:03]} d5 {[%emt 0:00:02]} 13. Bb3 {[%emt 0:00:12]} Bf6 {[%emt 0:00:02]} 14. c3 {[%emt 0:00:28]} Rb8 {[%emt 0:00:03]} 15. Nd2 {[%emt 0:00:03]} Be6 {[%emt 0:00:14]} 16. exd5 {[%emt 0:00:10]} cxd5 {[%emt 0:00:02]} 17. d4 {[%emt 0:00:08]} Qd6 {[%emt 0:00:03]} 18. Rb1 {[%emt 0:00:09]} c5 {[%emt 0:00:05]} 19. dxc5 {[%emt 0:00:13]} Qxc5 {[%emt 0:00:01]} 20. Bc2 {[%emt 0:00:03]} Rfd8 {[%emt 0:00:09]} 21. Nb3 {[%emt 0:00:09]} Qc4 {[%emt 0:00:10]} 22. Nd2 {[%emt 0:00:49]} Qc5 {[%emt 0:00:06]} 23. Qf3 {[%emt 0:00:03]} Rb6 {[%emt 0:00:17]} 24. Rfc1 {[%emt 0:00:44]} Kf8 {[%emt 0:00:09]} 25. Nf1 {[%emt 0:00:03]} Rdb8 {[%emt 0:00:02]} 26. Bf5 {[%emt 0:00:04]} Rxb2 {[%emt 0:00:09]} 27. Rxb2 {[%emt 0:00:01]} Rxb2 {[%emt 0:00:01]} 28. Ne3 {[%emt 0:00:01]} Bxf5 {[%emt 0:00:35]} 29. Nxf5 {[%emt 0:00:01]} Rb8 {[%emt 0:00:05]} 30. Rd1 {[%emt 0:00:02]} Qxc3 {[%emt 0:00:15]} 31. Qxd5 {[%emt 0:00:01]} Kg8 {[%emt 0:00:09]} 32. Qe4 {[%emt 0:00:05]} Qe5 {[%emt 0:00:08]} 33. Qg4 {[%emt 0:00:01]} Kh8 {[%emt 0:00:06]} 34. Ne3 {[%emt 0:00:01]} Qe6 {[%emt 0:00:04]} 35. Qf4 {[%emt 0:00:01]} Re8 {[%emt 0:00:01]} 36. Rd6 {[%emt 0:00:03]} Qe5 {[%emt 0:00:02]} 37. Rxf6 {[%emt 0:00:04]} Qxf6 {[%emt 0:00:02]} 38. Qc4 {[%emt 0:00:01]} a6 {[%emt 0:00:01]} 39. Qc2 {[%emt 0:00:03]} Rd8 {[%emt 0:00:01]} 40. Qb1 {[%emt 0:00:02]} Qd4 {[%emt 0:00:01]} 41. Qa2 {[%emt 0:00:02]} Qd7 {[%emt 0:00:01]} 42. Qc4 {[%emt 0:00:01]} a5 {[%emt 0:00:03]} 43. Qf4 {[%emt 0:00:02]} Rc8 {[%emt 0:00:03]} 44. Nf5 {[%emt 0:00:01]} Qe6 {[%emt 0:00:03]} 45. Kh2 {[%emt 0:00:03]} Qf6 {[%emt 0:00:01]} 46. Qg4 {[%emt 0:00:02]} Rd8 {[%emt 0:00:01]} 47. f3 {[%emt 0:00:03]} Qg6 {[%emt 0:00:05]} 48. Qh3 {[%emt 0:00:01]} Rd5 {[%emt 0:00:02]} 49. Ne3 {[%emt 0:00:01]} Rh5 {[%emt 0:00:01]} 0-1

[Event "RUS-chT Blitz Men 2018"]
[Site "Sochi"]
[Date "2018.10.10"]
[Round "3"]
[White "Ivlev, Aleksey"]
[Black "Vastrukhin, Oleg"]
[Result "0-1"]
[ECO "D08"]
[WhiteElo "2326"]
[BlackElo "2413"]
[Annotator "NA RC"]
[PlyCount "84"]
[EventDate "2018.10.10"]
[EventType "swiss"]
[EventCountry "RUS"]
[SourceTitle "playchess.com"]
[Source "ChessBase"]
[SourceQuality "1"]
[TimeControl "180+2"]

1. d4 {[%emt 0:00:00]} d5 {[%emt 0:00:00]} 2. c4 {[%emt 0:00:00]} e5 {[%emt 0:00:00]} 3. dxe5 {[%emt 0:00:03]} d4 {[%emt 0:00:01]} 4. Nf3 {[%emt 0:00:08]} Nc6 {[%emt 0:00:00]} 5. Nbd2 {[%emt 0:00:12]} Bg4 {[%emt 0:00:02]} 6. h3 {[%emt 0:00:03]} Bh5 {[%emt 0:00:01]} 7. g4 {[%emt 0:00:01]} Bg6 {[%emt 0:00:01]} 8. Bg2 {[%emt 0:00:01]} Qe7 {[%emt 0:00:00]} 9. a3 {[%emt 0:00:09]} O-O-O {[%emt 0:00:02]} 10. Qa4 {[%emt 0:00:22]} Kb8 {[%emt 0:00:02]} 11. O-O {[%emt 0:00:17]} h5 {[%emt 0:00:01]} 12. g5 {[%emt 0:00:01]} h4 {[%emt 0:00:01]} 13. Rd1 {[%emt 0:00:11]} f6 {[%emt 0:00:05]} 14. exf6 {[%emt 0:00:08]} gxf6 {[%emt 0:00:02]} 15. Nf1 {[%emt 0:00:04]} Be4 {[%emt 0:00:15]} 16. N1h2 {[%emt 0:00:16]} fxg5 {[%emt 0:00:05]} 17. Bxg5 {[%emt 0:00:02]} Nf6 {[%emt 0:00:01]} 18. Kh1 {[%emt 0:00:24]} Bg7 {[%emt 0:00:03]} 19. c5 {[%emt 0:00:14]} Qe6 {[%emt 0:00:03]} 20. b4 {[%emt 0:00:17]} Rh5 {[%emt 0:00:03]} 21. b5 {[%emt 0:00:03]} Ne5 {[%emt 0:00:17]} 22. Rxd4 {[%emt 0:00:05]} Rxd4 {[%emt 0:00:11]} 23. Qxd4 {[%emt 0:00:01]} Nxf3 {[%emt 0:00:13]} 24. Qd8+ {[%emt 0:00:17]} Qc8 {[%emt 0:00:01]} 25. Qxc8+ {[%emt 0:00:03]} Kxc8 {[%emt 0:00:01]} 26. exf3 {[%emt 0:00:08]} Bd3 {[%emt 0:00:06]} 27. f4 {[%emt 0:00:14]} Ne4 {[%emt 0:00:04]} 28. Ra2 {[%emt 0:00:05]} Nxg5 {[%emt 0:00:05]} 29. fxg5 {[%emt 0:00:01]} Rxg5 {[%emt 0:00:02]} 30. b6 {[%emt 0:00:02]} axb6 {[%emt 0:00:15]} 31. cxb6 {[%emt 0:00:01]} cxb6 {[%emt 0:00:01]} 32. Bf3 {[%emt 0:00:04]} Rc5 {[%emt 0:00:10]} 33. Ng4 {[%emt 0:00:05]} Bf5 {[%emt 0:00:06]} 34. Kg2 {[%emt 0:00:01]} Rc3 {[%emt 0:00:05]} 35. a4 {[%emt 0:00:02]} Bf8 {[%emt 0:00:04]} 36. Ne3 {[%emt 0:00:01]} Be6 {[%emt 0:00:16]} 37. Bg4 {[%emt 0:00:01]} Bd7 {[%emt 0:00:20]} 38. Nd5 {[%emt 0:00:05]} Rb3 {[%emt 0:00:14]} 39. Rc2+ {[%emt 0:00:02]} Kd8 {[%emt 0:00:03]} 40. Nf6 {[%emt 0:00:02]} Bc6+ {[%emt 0:00:02]} 41. Kg1 {[%emt 0:00:03]} Rb1+ {[%emt 0:00:06]} 42. Kh2 {[%emt 0:00:01]} Rh1# {[%emt 0:00:01]} 0-1

[Event "RUS-chT Blitz Men 2018"]
[Site "Sochi"]
[Date "2018.10.10"]
[Round "4"]
[White "Vastrukhin, Oleg"]
[Black "Dilmukhametov, Artur"]
[Result "1/2-1/2"]
[ECO "A06"]
[WhiteElo "2413"]
[BlackElo "2353"]
[Annotator "NA RC"]
[PlyCount "77"]
[EventDate "2018.10.10"]
[EventType "swiss"]
[EventCountry "RUS"]
[SourceTitle "playchess.com"]
[Source "ChessBase"]
[SourceQuality "1"]
[TimeControl "180+2"]

1. Nf3 {[%emt 0:00:00]} d5 {[%emt 0:00:00]} 2. g3 {[%emt 0:00:00]} c6 {[%emt 0:00:01]} 3. Bg2 {[%emt 0:00:01]} Nf6 {[%emt 0:00:02]} 4. O-O {[%emt 0:00:01]} Bf5 {[%emt 0:00:03]} 5. c4 {[%emt 0:00:02]} Nbd7 {[%emt 0:00:06]} 6. d4 {[%emt 0:00:04]} a6 {[%emt 0:00:08]} 7. Qb3 {[%emt 0:00:17]} Ra7 {[%emt 0:00:19]} 8. Nc3 {[%emt 0:00:05]} e6 {[%emt 0:00:01]} 9. Bf4 {[%emt 0:00:09]} h6 {[%emt 0:00:03]} 10. h3 {[%emt 0:00:02]} Be7 {[%emt 0:00:02]} 11. Rfc1 {[%emt 0:00:02]} O-O {[%emt 0:00:09]} 12. a4 {[%emt 0:00:04]} Qb6 {[%emt 0:00:38]} 13. Qxb6 {[%emt 0:00:08]} Nxb6 {[%emt 0:00:02]} 14. c5 {[%emt 0:00:01]} Nbd7 {[%emt 0:00:13]} 15. g4 {[%emt 0:00:01]} Bh7 {[%emt 0:00:04]} 16. b4 {[%emt 0:00:01]} Raa8 {[%emt 0:00:05]} 17. Nd2 {[%emt 0:00:16]} Rfe8 {[%emt 0:00:19]} 18. e3 {[%emt 0:00:01]} Bf8 {[%emt 0:00:01]} 19. Nb3 {[%emt 0:00:03]} e5 {[%emt 0:00:06]} 20. Bg3 {[%emt 0:00:00]} Bd3 {[%emt 0:00:36]} 21. Na5 {[%emt 0:00:03]} Ra7 {[%emt 0:00:03]} 22. Ra3 {[%emt 0:00:20]} Ne4 {[%emt 0:00:18]} 23. Nxd5 {[%emt 0:00:08]} cxd5 {[%emt 0:00:10]} 24. Rxd3 {[%emt 0:00:02]} Nxg3 {[%emt 0:00:01]} 25. fxg3 {[%emt 0:00:01]} e4 {[%emt 0:00:04]} 26. Rb3 {[%emt 0:00:07]} Rc8 {[%emt 0:00:04]} 27. Rbb1 {[%emt 0:00:05]} Rc7 {[%emt 0:00:04]} 28. Bf1 {[%emt 0:00:03]} Ra8 {[%emt 0:00:01]} 29. Ra1 {[%emt 0:00:06]} Be7 {[%emt 0:00:07]} 30. b5 {[%emt 0:00:09]} axb5 {[%emt 0:00:00]} 31. axb5 {[%emt 0:00:01]} b6 {[%emt 0:00:01]} 32. Nc6 {[%emt 0:00:03]} Rxa1 {[%emt 0:00:05]} 33. Nxe7+ {[%emt 0:00:10]} Kf8 {[%emt 0:00:00]} 34. Rxa1 {[%emt 0:00:00]} Kxe7 {[%emt 0:00:01]} 35. c6 {[%emt 0:00:01]} Nf6 {[%emt 0:00:09]} 36. Ra6 {[%emt 0:00:02]} Ne8 {[%emt 0:00:02]} 37. Rxb6 {[%emt 0:00:02]} Nd6 {[%emt 0:00:01]} 38. Ra6 {[%emt 0:00:08]} Rc8 {[%emt 0:00:01]} 39. b6 {[%emt 0:00:16]} 1/2-1/2

[Event "RUS-chT Blitz Men 2018"]
[Site "Sochi"]
[Date "2018.10.10"]
[Round "4"]
[White "Tereshechkina, Maya"]
[Black "Pervakov, Sergey"]
[Result "0-1"]
[ECO "A41"]
[WhiteElo "2018"]
[BlackElo "2098"]
[Annotator "NA RC"]
[PlyCount "76"]
[EventDate "2018.10.10"]
[EventType "swiss"]
[EventCountry "RUS"]
[SourceTitle "playchess.com"]
[Source "ChessBase"]
[SourceQuality "1"]
[TimeControl "180+2"]

1. d4 {[%emt 0:00:00]} d6 {[%emt 0:00:00]} 2. Nf3 {[%emt 0:00:01]} Nf6 {[%emt 0:00:00]} 3. c4 {[%emt 0:00:01]} g6 {[%emt 0:00:01]} 4. e3 {[%emt 0:00:01]} Bg7 {[%emt 0:00:01]} 5. Be2 {[%emt 0:00:11]} O-O {[%emt 0:00:06]} 6. O-O {[%emt 0:00:01]} c5 {[%emt 0:00:06]} 7. b3 {[%emt 0:00:02]} cxd4 {[%emt 0:00:07]} 8. exd4 {[%emt 0:00:01]} Nbd7 {[%emt 0:00:31]} 9. Bb2 {[%emt 0:00:02]} e6 {[%emt 0:00:05]} 10. Nc3 {[%emt 0:00:11]} a6 {[%emt 0:00:07]} 11. Qd2 {[%emt 0:00:16]} b6 {[%emt 0:00:04]} 12. d5 {[%emt 0:00:16]} e5 {[%emt 0:00:05]} 13. Ng5 {[%emt 0:00:12]} h6 {[%emt 0:00:05]} 14. Nge4 {[%emt 0:00:02]} Nxe4 {[%emt 0:00:08]} 15. Nxe4 {[%emt 0:00:01]} Nc5 {[%emt 0:00:01]} 16. Nxc5 {[%emt 0:00:03]} bxc5 {[%emt 0:00:02]} 17. b4 {[%emt 0:00:21]} cxb4 {[%emt 0:00:11]} 18. Qxb4 {[%emt 0:00:01]} Qc7 {[%emt 0:00:01]} 19. Ba3 {[%emt 0:00:03]} Rd8 {[%emt 0:00:05]} 20. c5 {[%emt 0:00:42]} dxc5 {[%emt 0:00:10]} 21. Qxc5 {[%emt 0:00:01]} Qxc5 {[%emt 0:00:16]} 22. Bxc5 {[%emt 0:00:01]} e4 {[%emt 0:00:01]} 23. Rad1 {[%emt 0:00:21]} Bf5 {[%emt 0:00:05]} 24. Bc4 {[%emt 0:00:08]} Rdc8 {[%emt 0:00:16]} 25. d6 {[%emt 0:00:29]} Rxc5 {[%emt 0:00:02]} 26. Bd5 {[%emt 0:00:03]} Rd8 {[%emt 0:00:01]} 27. h3 {[%emt 0:00:01]} h5 {[%emt 0:00:06]} 28. Bb3 {[%emt 0:00:08]} Be5 {[%emt 0:00:03]} 29. Rd2 {[%emt 0:00:08]} Rxd6 {[%emt 0:00:02]} 30. Rxd6 {[%emt 0:00:03]} Bxd6 {[%emt 0:00:01]} 31. Rd1 {[%emt 0:00:01]} Be5 {[%emt 0:00:04]} 32. g3 {[%emt 0:00:04]} Rc3 {[%emt 0:00:05]} 33. Rd8+ {[%emt 0:00:04]} Kg7 {[%emt 0:00:03]} 34. Ra8 {[%emt 0:00:02]} Bxh3 {[%emt 0:00:06]} 35. Ra7 {[%emt 0:00:02]} Rc7 {[%emt 0:00:05]} 36. Rxa6 {[%emt 0:00:02]} Bg4 {[%emt 0:00:02]} 37. Kg2 {[%emt 0:00:02]} Bf3+ {[%emt 0:00:01]} 38. Kh2 {[%emt 0:00:01]} Rc1 {[%emt 0:00:02]} 0-1

[Event "RUS-chT Blitz Men 2018"]
[Site "Sochi"]
[Date "2018.10.10"]
[Round "5"]
[White "Nechaev, Oleg"]
[Black "Tatarintsev, Egor"]
[Result "1-0"]
[ECO "A46"]
[WhiteElo "2400"]
[BlackElo "2086"]
[Annotator "NA RC"]
[PlyCount "119"]
[EventDate "2018.10.10"]
[EventType "swiss"]
[EventCountry "RUS"]
[SourceTitle "playchess.com"]
[Source "ChessBase"]
[SourceQuality "1"]
[TimeControl "180+2"]

1. d4 {[%emt 0:00:00]} e6 {[%emt 0:00:00]} 2. Nf3 {[%emt 0:00:02]} Nf6 {[%emt 0:00:00]} 3. Bg5 {[%emt 0:00:01]} b6 {[%emt 0:00:09]} 4. Nbd2 {[%emt 0:00:02]} Bb7 {[%emt 0:00:06]} 5. e4 {[%emt 0:00:01]} h6 {[%emt 0:00:01]} 6. Bxf6 {[%emt 0:00:04]} Qxf6 {[%emt 0:00:01]} 7. c3 {[%emt 0:00:02]} g5 {[%emt 0:00:11]} 8. Bd3 {[%emt 0:00:06]} Nc6 {[%emt 0:00:22]} 9. Qe2 {[%emt 0:00:11]} Be7 {[%emt 0:00:28]} 10. O-O-O {[%emt 0:00:12]} O-O-O {[%emt 0:00:04]} 11. Kb1 {[%emt 0:00:11]} Qg7 {[%emt 0:00:08]} 12. Ba6 {[%emt 0:00:14]} Nb8 {[%emt 0:00:05]} 13. Bxb7+ {[%emt 0:00:02]} Kxb7 {[%emt 0:00:01]} 14. Ka1 {[%emt 0:00:04]} d6 {[%emt 0:00:21]} 15. d5 {[%emt 0:00:06]} Bf6 {[%emt 0:00:10]} 16. Nb3 {[%emt 0:00:02]} c6 {[%emt 0:00:22]} 17. Nfd4 {[%emt 0:00:35]} c5 {[%emt 0:00:14]} 18. Nc2 {[%emt 0:00:12]} Qf8 {[%emt 0:00:14]} 19. Ne3 {[%emt 0:00:06]} Qe8 {[%emt 0:00:02]} 20. Qf3 {[%emt 0:00:07]} Be5 {[%emt 0:00:08]} 21. Rhe1 {[%emt 0:00:01]} Rf8 {[%emt 0:00:13]} 22. g3 {[%emt 0:00:02]} Qa4 {[%emt 0:00:03]} 23. Ng4 Nd7 {[%emt 0:00:10]} 24. Qe3 {[%emt 0:00:20]} f5 {[%emt 0:00:06]} 25. dxe6 {[%emt 0:00:07]} fxg4 {[%emt 0:00:01]} 26. e7 {[%emt 0:00:01]} Rfe8 {[%emt 0:00:04]} 27. exd8=Q {[%emt 0:00:05]} Rxd8 {[%emt 0:00:01]} 28. Rd2 {[%emt 0:00:19]} Rf8 {[%emt 0:00:01]} 29. Qd3 {[%emt 0:00:06]} Qc6 {[%emt 0:00:02]} 30. Qe2 {[%emt 0:00:02]} Rf3 {[%emt 0:00:04]} 31. Red1 {[%emt 0:00:01]} Nf6 {[%emt 0:00:03]} 32. Re1 {[%emt 0:00:10]} Nd7 {[%emt 0:00:03]} 33. Rd5 {[%emt 0:00:08]} Nf6 {[%emt 0:00:01]} 34. Rdd1 {[%emt 0:00:01]} Nd7 {[%emt 0:00:04]} 35. Nd2 {[%emt 0:00:01]} Rf7 {[%emt 0:00:03]} 36. Nc4 {[%emt 0:00:04]} Re7 {[%emt 0:00:02]} 37. Rd2 {[%emt 0:00:03]} Nf6 {[%emt 0:00:02]} 38. Qd3 {[%emt 0:00:06]} Kc7 {[%emt 0:00:01]} 39. f3 {[%emt 0:00:02]} gxf3 {[%emt 0:00:01]} 40. Qxf3 {[%emt 0:00:01]} g4 {[%emt 0:00:00]} 41. Qf5 {[%emt 0:00:01]} Qd7 {[%emt 0:00:02]} 42. Nxe5 {[%emt 0:00:06]} Qxf5 43. exf5 {[%emt 0:00:01]} Rxe5 {[%emt 0:00:07]} 44. Rxe5 {[%emt 0:00:01]} dxe5 {[%emt 0:00:01]} 45. Kb1 {[%emt 0:00:02]} e4 {[%emt 0:00:02]} 46. Kc2 {[%emt 0:00:01]} Nd7 {[%emt 0:00:02]} 47. Re2 {[%emt 0:00:03]} Ne5 {[%emt 0:00:01]} 48. Rxe4 {[%emt 0:00:01]} Kd6 {[%emt 0:00:01]} 49. b3 {[%emt 0:00:03]} Kd5 {[%emt 0:00:03]} 50. Rf4 {[%emt 0:00:03]} Kd6 {[%emt 0:00:04]} 51. f6 {[%emt 0:00:01]} Ke6 {[%emt 0:00:01]} 52. f7 {[%emt 0:00:01]} Nxf7 {[%emt 0:00:01]} 53. Rxg4 {[%emt 0:00:01]} Ng5 {[%emt 0:00:01]} 54. h4 {[%emt 0:00:09]} Nf3 {[%emt 0:00:02]} 55. Rg6+ {[%emt 0:00:02]} Kf5 {[%emt 0:00:03]} 56. Rxh6 {[%emt 0:00:01]} Kg4 {[%emt 0:00:00]} 57. Rg6+ {[%emt 0:00:02]} Kh5 {[%emt 0:00:01]} 58. Rg7 {[%emt 0:00:01]} a5 {[%emt 0:00:03]} 59. a4 {[%emt 0:00:01]} Ne5 {[%emt 0:00:02]} 60. Rg5+ {[%emt 0:00:02]} 1-0

[Event "RUS-chT Blitz Men 2018"]
[Site "Sochi"]
[Date "2018.10.10"]
[Round "5"]
[White "Gogolev, Artem"]
[Black "Dudin, Gleb"]
[Result "1-0"]
[ECO "A05"]
[WhiteElo "2389"]
[BlackElo "2178"]
[Annotator "NA"]
[PlyCount "57"]
[EventDate "2018.10.10"]
[EventType "swiss"]
[EventCountry "RUS"]
[SourceTitle "playchess.com"]
[Source "ChessBase"]
[SourceQuality "1"]
[TimeControl "180+2"]

1. Nf3 {[%emt 0:00:00]} Nf6 {[%emt 0:00:00]} 2. g3 {[%emt 0:00:00]} d5 {[%emt 0:00:00]} 3. c4 {[%emt 0:00:06]} c6 {[%emt 0:00:01]} 4. Bg2 {[%emt 0:00:01]} Bg4 {[%emt 0:00:03]} 5. O-O {[%emt 0:00:05]} e6 {[%emt 0:00:03]} 6. d3 {[%emt 0:00:02]} Nbd7 {[%emt 0:00:04]} 7. Nc3 {[%emt 0:00:09]} Be7 {[%emt 0:00:23]} 8. Qc2 {[%emt 0:00:12]} O-O {[%emt 0:00:04]} 9. cxd5 {[%emt 0:00:02]} exd5 {[%emt 0:00:39]} 10. e4 {[%emt 0:00:05]} dxe4 {[%emt 0:00:01]} 11. dxe4 {[%emt 0:00:01]} Nc5 {[%emt 0:00:14]} 12. Rd1 {[%emt 0:00:21]} Qc8 {[%emt 0:00:16]} 13. e5 {[%emt 0:00:13]} Nfd7 {[%emt 0:00:45]} 14. Re1 {[%emt 0:00:31]} Re8 {[%emt 0:00:21]} 15. Nd4 {[%emt 0:00:19]} Nf8 {[%emt 0:00:17]} 16. Be3 {[%emt 0:00:17]} Nfe6 {[%emt 0:00:14]} 17. Nxe6 {[%emt 0:00:04]} Nxe6 {[%emt 0:00:02]} 18. h3 {[%emt 0:00:07]} Bh5 {[%emt 0:00:03]} 19. f4 {[%emt 0:00:01]} Bc5 {[%emt 0:00:04]} 20. g4 {[%emt 0:00:06]} Bxe3+ {[%emt 0:00:02]} 21. Rxe3 {[%emt 0:00:02]} Nxf4 {[%emt 0:00:02]} 22. gxh5 {[%emt 0:00:03]} Qd8 {[%emt 0:00:03]} 23. Qf2 {[%emt 0:00:04]} Qg5 {[%emt 0:00:02]} 24. Rf1 {[%emt 0:00:10]} Nxg2 {[%emt 0:00:02]} 25. Rg3 {[%emt 0:00:02]} Qh6 {[%emt 0:00:02]} 26. Rxg2 {[%emt 0:00:04]} Re7 {[%emt 0:00:02]} 27. Ne4 {[%emt 0:00:06]} Kh8 {[%emt 0:00:01]} 28. Nd6 {[%emt 0:00:03]} Rf8 {[%emt 0:00:02]} 29. Nf5 {[%emt 0:00:01]} 1-0

[Event "RUS-chT Blitz Men 2018"]
[Site "Sochi"]
[Date "2018.10.10"]
[Round "5"]
[White "Nuristani, Iman"]
[Black "Sirotin, Pavel"]
[Result "1-0"]
[ECO "D35"]
[WhiteElo "2242"]
[BlackElo "2012"]
[Annotator "NA"]
[PlyCount "75"]
[EventDate "2018.10.10"]
[EventType "swiss"]
[EventCountry "RUS"]
[SourceTitle "playchess.com"]
[Source "ChessBase"]
[SourceQuality "1"]
[TimeControl "180+2"]

1. d4 {[%emt 0:00:00]} d5 {[%emt 0:00:00]} 2. c4 {[%emt 0:00:01]} e6 {[%emt 0:00:00]} 3. Nc3 {[%emt 0:00:00]} Nf6 {[%emt 0:00:01]} 4. cxd5 {[%emt 0:00:01]} exd5 {[%emt 0:00:01]} 5. Bg5 {[%emt 0:00:01]} Nbd7 {[%emt 0:00:03]} 6. e3 {[%emt 0:00:01]} c6 7. Qc2 Be7 {[%emt 0:00:02]} 8. Bd3 {[%emt 0:00:01]} Nh5 {[%emt 0:00:01]} 9. Bxe7 {[%emt 0:00:01]} Qxe7 {[%emt 0:00:02]} 10. Nge2 {[%emt 0:00:02]} g6 {[%emt 0:00:04]} 11. O-O {[%emt 0:00:18]} O-O {[%emt 0:00:01]} 12. Rae1 {[%emt 0:00:11]} Nb6 {[%emt 0:00:11]} 13. b3 {[%emt 0:00:10]} Bg4 {[%emt 0:00:15]} 14. Ng3 {[%emt 0:00:21]} Nxg3 {[%emt 0:00:02]} 15. hxg3 {[%emt 0:00:01]} Rfe8 {[%emt 0:00:06]} 16. Ne2 {[%emt 0:00:13]} Nc8 {[%emt 0:00:07]} 17. Nf4 {[%emt 0:00:03]} Nd6 {[%emt 0:00:01]} 18. f3 {[%emt 0:00:05]} Bf5 {[%emt 0:00:05]} 19. g4 {[%emt 0:01:15]} Bxd3 {[%emt 0:00:02]} 20. Qxd3 {[%emt 0:00:01]} Rad8 {[%emt 0:00:02]} 21. Qd2 {[%emt 0:00:11]} Qg5 {[%emt 0:00:09]} 22. Nd3 {[%emt 0:00:06]} f5 {[%emt 0:00:11]} 23. Ne5 {[%emt 0:00:07]} Nf7 {[%emt 0:00:06]} 24. f4 {[%emt 0:00:18]} Qe7 {[%emt 0:00:04]} 25. gxf5 {[%emt 0:00:01]} gxf5 {[%emt 0:00:01]} 26. Rf3 {[%emt 0:00:03]} Nxe5 {[%emt 0:00:04]} 27. fxe5 {[%emt 0:00:03]} Qe6 {[%emt 0:00:10]} 28. Qf2 {[%emt 0:00:03]} Rf8 {[%emt 0:00:03]} 29. Rf1 {[%emt 0:00:01]} Rd7 {[%emt 0:00:06]} 30. Rxf5 {[%emt 0:00:03]} Rxf5 {[%emt 0:00:03]} 31. Qxf5 {[%emt 0:00:00]} Qxf5 {[%emt 0:00:05]} 32. Rxf5 {[%emt 0:00:02]} Rg7 {[%emt 0:00:01]} 33. Kf2 {[%emt 0:00:02]} Rg4 {[%emt 0:00:04]} 34. Kf3 {[%emt 0:00:02]} Rh4 {[%emt 0:00:00]} 35. g3 Rh2 {[%emt 0:00:02]} 36. e6 {[%emt 0:00:12]} Rh6 {[%emt 0:00:25]} 37. e7 {[%emt 0:00:01]} Re6 {[%emt 0:00:18]} 38. Rf8+ {[%emt 0:00:01]} 1-0

[Event "RUS-chT Blitz Men 2018"]
[Site "Sochi"]
[Date "2018.10.10"]
[Round "5"]
[White "Pervakov, Sergey"]
[Black "Kurbedinov, Ramis"]
[Result "0-1"]
[ECO "B08"]
[WhiteElo "2098"]
[BlackElo "2305"]
[Annotator "NA"]
[PlyCount "60"]
[EventDate "2018.10.10"]
[EventType "swiss"]
[EventCountry "RUS"]
[SourceTitle "playchess.com"]
[Source "ChessBase"]
[SourceQuality "1"]
[TimeControl "180+2"]

1. e4 g6 2. d4 {[%emt 0:00:02]} Bg7 {[%emt 0:00:00]} 3. Nc3 {[%emt 0:00:01]} d6 {[%emt 0:00:00]} 4. Nf3 {[%emt 0:00:01]} Nf6 {[%emt 0:00:01]} 5. Be2 {[%emt 0:00:01]} O-O {[%emt 0:00:08]} 6. O-O {[%emt 0:00:01]} Bg4 {[%emt 0:00:04]} 7. h3 {[%emt 0:00:06]} Bxf3 {[%emt 0:00:01]} 8. Bxf3 {[%emt 0:00:01]} Nc6 {[%emt 0:00:01]} 9. d5 {[%emt 0:00:07]} Ne5 {[%emt 0:00:01]} 10. Be2 c6 11. Be3 {[%emt 0:00:30]} cxd5 {[%emt 0:00:02]} 12. exd5 {[%emt 0:00:02]} a6 {[%emt 0:00:08]} 13. Qd2 {[%emt 0:00:13]} Rc8 {[%emt 0:00:06]} 14. Bh6 {[%emt 0:00:08]} Nc4 {[%emt 0:00:09]} 15. Bxc4 {[%emt 0:00:02]} Rxc4 {[%emt 0:00:00]} 16. Bxg7 {[%emt 0:00:02]} Kxg7 {[%emt 0:00:01]} 17. Rfe1 {[%emt 0:00:06]} Qc7 {[%emt 0:00:19]} 18. Rad1 {[%emt 0:00:11]} b5 {[%emt 0:00:14]} 19. Re2 {[%emt 0:00:23]} Rc8 {[%emt 0:00:11]} 20. a3 {[%emt 0:00:11]} Qb7 {[%emt 0:00:27]} 21. Rde1 {[%emt 0:00:04]} R8c7 {[%emt 0:00:03]} 22. Re3 {[%emt 0:00:13]} a5 {[%emt 0:00:24]} 23. b3 {[%emt 0:00:09]} R4c5 {[%emt 0:00:02]} 24. R3e2 {[%emt 0:00:23]} b4 {[%emt 0:00:11]} 25. Ne4 {[%emt 0:00:07]} Rxc2 {[%emt 0:00:12]} 26. Qxc2 {[%emt 0:00:24]} Rxc2 {[%emt 0:00:02]} 27. Rxc2 {[%emt 0:00:01]} Nxe4 {[%emt 0:00:02]} 28. Rxe4 {[%emt 0:00:03]} bxa3 {[%emt 0:00:01]} 29. Re3 {[%emt 0:00:11]} a4 {[%emt 0:00:11]} 30. Ra2 {[%emt 0:00:10]} axb3 {[%emt 0:00:05]} 0-1

[Event "RUS-chT Blitz Men 2018"]
[Site "Sochi"]
[Date "2018.10.10"]
[Round "6"]
[White "Kuzmin, Roman"]
[Black "Linker, Mikhail"]
[Result "0-1"]
[ECO "B76"]
[WhiteElo "1855"]
[BlackElo "2269"]
[Annotator "NA RC"]
[PlyCount "46"]
[EventDate "2018.10.10"]
[EventType "swiss"]
[EventCountry "RUS"]
[SourceTitle "playchess.com"]
[Source "ChessBase"]
[SourceQuality "1"]
[TimeControl "180+2"]

1. e4 {[%emt 0:00:00]} c5 {[%emt 0:00:00]} 2. Nf3 {[%emt 0:00:00]} d6 {[%emt 0:00:00]} 3. d4 {[%emt 0:00:01]} cxd4 {[%emt 0:00:01]} 4. Nxd4 {[%emt 0:00:01]} Nf6 {[%emt 0:00:01]} 5. Nc3 {[%emt 0:00:01]} g6 {[%emt 0:00:01]} 6. Be3 {[%emt 0:00:05]} Bg7 {[%emt 0:00:01]} 7. f3 {[%emt 0:00:02]} O-O 8. Qd2 Nc6 {[%emt 0:00:03]} 9. O-O-O {[%emt 0:00:03]} d5 {[%emt 0:00:01]} 10. exd5 {[%emt 0:00:09]} Nxd5 {[%emt 0:00:01]} 11. Nxc6 {[%emt 0:00:01]} bxc6 {[%emt 0:00:02]} 12. Bd4 {[%emt 0:00:02]} Nxc3 {[%emt 0:00:01]} 13. Qxc3 {[%emt 0:00:25]} Bh6+ {[%emt 0:00:01]} 14. Kb1 {[%emt 0:00:09]} e5 {[%emt 0:00:02]} 15. Qxc6 {[%emt 0:02:09]} Bf5 {[%emt 0:00:02]} 16. Bd3 {[%emt 0:00:08]} Rc8 {[%emt 0:00:24]} 17. Qa4 {[%emt 0:00:15]} Bxd3 {[%emt 0:00:04]} 18. Rxd3 {[%emt 0:00:02]} exd4 {[%emt 0:00:03]} 19. h4 {[%emt 0:00:02]} Bg7 {[%emt 0:00:12]} 20. h5 {[%emt 0:00:01]} Qe8 {[%emt 0:00:08]} 21. Qa6 {[%emt 0:00:02]} Qe2 {[%emt 0:00:06]} 22. Rc1 {[%emt 0:00:03]} Bh6 {[%emt 0:00:10]} 23. hxg6 {[%emt 0:00:02]} hxg6 {[%emt 0:00:01]} 0-1